bitfinex-derivatives/quotes_ETHF0:USTF0_20250904
["timestamp","ask_amount","ask_price","bid_price","bid_amount"]
[1756967107579,0.713,4365.2,4364.3,2.0439565]
[1756967107580,0.713,4364.4,4364.3,2.0439565]
[1756967107766,0.713,4363.3,4362.7,2.8615391]
[1756967107970,0.713,4362.9,4362.2,0.299]
[1756967108176,0.713,4362.9,4362.0,33.0628]
[1756967108177,0.713,4362.9,4362.8,0.81069806]
[1756967108576,0.713,4362.9,4362.8,2.45662055]
[1756967108979,0.713,4362.9,4362.8,0.57469806]
[1756967109179,0.713,4362.9,4362.8,2.45662055]
[1756967109579,0.713,4362.9,4362.8,0.81069806]
[1756967109781,0.713,4362.9,4362.8,0.60849806]
[1756967109977,0.713,4362.9,4362.8,0.37249806]
[1756967110183,0.713,4362.9,4362.8,0.17419806]
[1756967110383,0.713,4362.9,4362.8,0.60849806]
[1756967110979,0.713,4362.9,4362.8,0.81069806]
[1756967111281,0.713,4362.9,4362.0,33.0628]
[1756967111282,0.713,4362.9,4362.2,0.236]
[1756967111582,0.4097,4361.7,4361.0,0.10396915]
[1756967111779,0.713,4361.1,4361.0,0.10396915]
[1756967111979,0.713,4361.1,4361.0,0.53986915]
[1756967112290,0.713,4361.1,4361.0,0.34096915]
[1756967112783,0.1203,4361.5,4361.0,0.34096915]
[1756967112784,0.1203,4362.5,4361.0,5.15646915]
[1756967112983,0.6894,4362.0,4361.1,0.237]
[1756967113183,0.8129,4362.0,4361.2,0.238]
[1756967113781,0.8129,4362.0,4361.1,0.3015]
[1756967113975,0.8129,4362.0,4361.0,0.10396915]
[1756967113976,0.6894,4362.0,4361.9,0.3944]
[1756967114180,0.4848,4362.0,4361.9,0.9339]
[1756967114377,0.1146,4362.2,4362.1,0.3944]
[1756967114676,0.1146,4362.2,4362.1,0.6959]
[1756967114880,0.2862,4363.4,4362.2,0.3015]
[1756967115078,0.2862,4363.4,4362.0,0.1181]
[1756967115079,0.2862,4363.4,4362.8,5.93129028]
[1756967115280,0.2862,4363.4,4362.9,0.239]
[1756967115484,0.1235,4363.0,4362.9,0.239]
[1756967116091,0.4097,4363.0,4362.9,0.239]
[1756967116890,0.2862,4363.0,4362.9,0.5405]
[1756967117286,0.2862,4363.0,4362.9,0.239]
[1756967117486,0.2862,4363.9,4363.1,0.3015]
[1756967117689,0.2862,4363.9,4363.5,5.93129028]
[1756967117993,0.2862,4364.4,4363.6,0.239]
[1756967118186,0.2862,4364.4,4362.1,0.3015]
[1756967118187,0.2862,4363.9,4362.1,0.3015]
[1756967118382,0.2862,4362.4,4362.2,0.24]
[1756967118589,0.2862,4362.4,4361.5,0.3015]
[1756967118791,0.2862,4362.4,4361.6,0.24]
[1756967119091,0.2862,4361.9,4361.6,0.24]
[1756967119488,0.1235,4362.0,4361.6,0.24]
[1756967119699,0.1235,4362.0,4361.6,0.3015]
[1756967119994,0.2862,4361.9,4361.6,0.3015]
[1756967120294,0.2862,4362.4,4361.7,0.24]
[1756967121588,0.2862,4362.4,4361.7,0.5415]
[1756967121989,0.2862,4362.9,4362.1,0.3015]
[1756967122298,0.2862,4362.9,4362.2,0.24]
[1756967122893,0.2862,4362.9,4362.3,0.3015]
[1756967124796,0.2862,4362.9,4362.4,0.24]
[1756967125292,0.1235,4364.0,4362.6,0.3015]
[1756967125293,0.2862,4363.4,4362.6,0.3015]
[1756967125593,0.51539,4363.9,4362.6,0.3015]
[1756967125792,0.2862,4362.9,4362.7,0.038]
[1756967125989,0.2862,4362.9,4362.8,0.038]
[1756967126386,0.2862,4362.9,4362.8,0.24]
[1756967126891,0.1235,4363.0,4362.6,0.24]
[1756967126892,0.2862,4362.8,4362.6,0.24]
[1756967127090,0.2862,4362.8,4361.6,0.3015]
[1756967127091,0.2862,4362.9,4361.9,0.3015]
[1756967127286,0.2862,4362.9,4362.0,0.24]
[1756967127594,0.2862,4362.9,4362.1,0.3015]
[1756967127804,0.2862,4362.9,4362.2,0.24]
[1756967128599,0.2862,4362.9,4362.3,0.239]
[1756967128801,0.1235,4363.0,4361.7,0.3015]
[1756967128802,0.2862,4362.4,4361.7,0.3015]
[1756967129002,0.2862,4362.4,4361.8,0.239]
[1756967129188,0.6894,4361.9,4361.8,0.3944]
[1756967129493,0.6894,4361.9,4361.8,0.6334]
[1756967129700,0.6894,4361.9,4361.8,0.9349]
[1756967129899,0.2862,4362.4,4361.8,0.9349]
[1756967130292,0.4032,4361.9,4361.4,0.3015]
[1756967130501,0.1986,4361.6,4361.5,0.7689]
[1756967130692,0.4848,4361.6,4361.5,0.7689]
[1756967130891,0.1235,4363.0,4362.3,0.6959]
[1756967130892,0.4848,4362.4,4362.3,0.6959]
[1756967131097,0.4097,4363.0,4362.3,0.9349]
[1756967131295,0.2862,4362.9,4362.3,0.9349]
[1756967131697,0.2862,4362.9,4362.3,0.6334]
[1756967131898,0.1235,4363.0,4362.3,0.6334]
[1756967131899,0.2862,4363.4,4362.9,0.3015]
[1756967132103,0.6894,4363.9,4363.8,0.1989]
[1756967132302,1.24645768,4363.9,4363.8,0.24]
[1756967132906,0.6894,4363.9,4363.8,0.24]
[1756967133106,0.6894,4363.9,4363.8,0.4389]
[1756967133307,1.24680516,4363.9,4363.8,0.4389]
[1756967133504,0.2862,4363.9,4363.8,0.5415]
[1756967133804,0.2862,4363.9,4363.8,0.24]
[1756967135110,0.2862,4363.9,4363.3,0.3015]
[1756967135308,0.1235,4364.0,4363.4,0.239]
[1756967135910,0.1235,4364.0,4363.5,0.3015]
[1756967136103,0.1235,4364.0,4363.4,0.239]
[1756967136302,0.8129,4364.0,4363.9,0.1989]
[1756967136505,0.8129,4364.0,4363.5,0.3015]
[1756967136705,0.8129,4364.0,4363.6,0.239]
[1756967137106,0.8129,4364.0,4363.1,0.3015]
[1756967137302,0.55968727,4363.9,4363.2,0.239]
[1756967137605,0.4848,4363.3,4363.2,0.6334]
[1756967137811,0.4848,4363.3,4363.2,0.9349]
[1756967138203,0.4848,4363.3,4363.2,0.6959]
[1756967138409,0.6894,4363.3,4363.2,0.239]
[1756967139209,0.1235,4363.5,4362.4,38.94729028]
[1756967139512,0.5267,4362.5,4362.4,0.3944]
[1756967139807,0.5267,4362.5,4362.4,0.6334]
[1756967140013,0.4848,4362.5,4362.4,0.9349]
[1756967140207,0.1986,4362.5,4362.4,0.9349]
[1756967140412,0.1235,4363.0,4362.4,0.6334]
[1756967140907,0.4848,4362.8,4362.7,0.1989]
[1756967141111,0.4848,4362.8,4362.7,0.3944]
[1756967141314,0.4848,4362.8,4362.7,0.6959]
[1756967142117,0.6894,4362.8,4362.7,0.3944]
[1756967142624,0.6894,4362.8,4362.7,0.6985]
[1756967142924,0.6894,4362.8,4362.7,0.3944]
[1756967143125,0.6894,4362.8,4362.7,0.6334]
[1756967144020,0.5177,4363.5,4363.4,0.19]
[1756967144226,0.8071,4363.5,4363.4,0.429]
[1756967144528,1.36678008,4363.5,4363.4,0.429]
[1756967144818,1.36678008,4363.5,4363.0,0.3041]
[1756967145028,0.8071,4363.5,4363.4,0.429]
[1756967145219,1.3668284,4363.5,4363.4,0.429]
[1756967145418,0.5597284,4363.5,4363.4,6.87489028]
[1756967145621,0.6836,4364.4,4364.3,0.19]
[1756967145816,1.2434055,4364.4,4364.3,0.429]
[1756967146130,1.2434055,4364.4,4364.3,0.239]
[1756967146322,1.2434055,4364.4,4364.3,0.429]
[1756967146622,1.2434055,4364.4,4364.3,0.239]
[1756967146823,0.4878,4364.4,4364.3,0.6395]
[1756967147126,0.4878,4364.4,4364.2,0.239]
[1756967147127,0.6836,4364.3,4364.2,0.239]
[1756967147329,1.24313761,4364.3,4364.2,0.239]
[1756967149022,4.6836,4364.3,4363.2,0.239]
[1756967149326,0.4878,4363.7,4363.6,0.4005]
[1756967149515,0.6836,4363.7,4363.6,0.4005]
[1756967149719,0.95373761,4363.7,4363.3,5.93129028]
[1756967150026,0.6836,4363.4,4363.3,6.12129028]
[1756967150222,1.24313761,4363.4,4363.3,6.12129028]
[1756967150524,1.24313761,4363.4,4363.3,6.63589028]
[1756967150729,1.24313761,4363.4,4363.3,0.4005]
[1756967150920,1.24313761,4363.4,4362.9,0.3041]
[1756967151120,0.4878,4363.0,4362.9,0.4941]
[1756967151426,0.4878,4363.0,4362.9,0.9436]
[1756967151728,0.4878,4363.0,4362.9,0.7046]
[1756967152026,0.4878,4363.0,4362.9,0.9436]
[1756967152821,0.4081,4363.5,4362.9,0.9436]
[1756967153021,0.1187,4364.0,4363.3,6.63589028]
[1756967153022,0.55999317,4363.4,4363.3,6.63589028]
[1756967153330,0.55999317,4363.4,4363.3,6.87489028]
[1756967155529,0.55999317,4363.4,4363.3,0.9436]
[1756967157518,0.1235,4364.5,4363.3,11.72594078]
[1756967157723,0.1235,4364.5,4364.1,6.85726078]
[1756967157926,0.4129,4364.5,4364.2,0.238]
[1756967158317,0.3171,4365.0,4364.3,6.85726078]
[1756967158524,0.2894,4364.9,4364.3,6.85726078]
[1756967158717,0.3171,4364.5,4364.4,0.238]
[1756967159323,0.6065,4364.5,4364.4,0.238]
[1756967159921,0.4081,4364.5,4364.4,0.238]
[1756967160430,0.2894,4364.4,4364.3,6.85726078]
[1756967160731,0.2894,4364.4,4364.3,7.09526078]
[1756967160932,0.6836,4364.4,4364.3,0.238]
[1756967161225,0.3942,4364.4,4363.5,7.04255338]
[1756967161431,0.4878,4364.3,4363.6,0.238]
[1756967161826,0.2894,4364.3,4364.2,6.85726078]
[1756967162026,0.1187,4364.5,4364.2,7.09526078]
[1756967162434,0.2894,4365.1,4364.3,4.0]
[1756967162728,0.1187,4366.0,4364.9,6.85726078]
[1756967162729,0.3171,4365.5,4364.9,6.85726078]
[1756967162929,0.1187,4365.5,4365.0,0.238]
[1756967163230,0.2894,4365.4,4365.0,0.238]
[1756967163930,0.6065,4366.0,4365.1,33.23508]
[1756967164132,0.6065,4366.0,4365.6,6.85726078]
[1756967164133,0.1187,4366.0,4365.6,6.85726078]
[1756967164338,0.1187,4366.0,4365.7,0.238]
[1756967164532,0.2894,4365.8,4365.1,39.86326078]
[1756967164835,0.2894,4365.2,4365.1,39.86326078]
[1756967165227,0.2894,4365.2,4365.1,40.10126078]
[1756967165922,0.1187,4365.5,4365.1,40.10126078]
[1756967167729,0.1187,4366.0,4365.1,40.10126078]
[1756967168036,0.3171,4366.0,4365.7,6.85726078]
[1756967168334,0.2894,4365.9,4365.8,0.238]
[1756967168730,0.2894,4365.8,4365.1,39.86326078]
[1756967168929,0.1187,4365.5,4365.2,0.238]
[1756967169338,0.2894,4365.9,4365.2,0.238]
[1756967170036,0.4878,4365.9,4365.2,0.238]
[1756967170626,0.2894,4365.3,4365.1,39.86326078]
[1756967170831,0.2894,4365.4,4365.3,0.238]
[1756967171134,0.4878,4365.4,4365.3,0.238]
[1756967171936,0.2894,4365.4,4365.3,0.238]
[1756967172137,0.2894,4365.4,4365.1,39.86326078]
[1756967172340,0.2894,4365.4,4365.2,0.238]
[1756967173535,0.1187,4365.5,4365.2,0.238]
[1756967173938,0.3036,4365.8,4365.2,0.238]
[1756967174136,0.3036,4365.9,4365.7,6.85726078]
[1756967174442,0.3036,4366.4,4365.8,0.238]
[1756967174642,0.3036,4366.4,4366.3,6.85726078]
[1756967174942,0.3036,4366.4,4366.3,7.09526078]
[1756967175540,0.1187,4366.5,4366.3,7.09526078]
[1756967175842,0.5064,4366.9,4366.3,7.09526078]
[1756967176033,0.3036,4366.9,4366.3,7.09526078]
[1756967176539,0.5064,4366.9,4366.3,7.09526078]
[1756967176741,0.3036,4366.9,4366.3,7.09526078]
[1756967177332,0.1187,4367.0,4366.3,7.09526078]
[1756967177537,0.3036,4367.4,4366.9,6.85726078]
[1756967177742,0.3036,4367.4,4367.0,0.238]
[1756967178143,0.2028,4367.3,4367.0,0.238]
[1756967178344,0.2028,4367.4,4367.0,0.238]
[1756967178540,0.3036,4367.4,4367.0,0.238]
[1756967178937,0.3172,4368.0,4367.0,0.238]
[1756967179146,0.3036,4367.9,4367.8,6.85726078]
[1756967179341,0.3036,4367.9,4367.8,7.09526078]
[1756967179944,0.1144,4368.0,4367.8,7.09526078]
[1756967180240,0.2028,4367.4,4367.2,6.85726078]
[1756967180446,0.5064,4367.3,4366.7,32.993]
[1756967180647,0.1144,4367.0,4366.8,0.52462575]
[1756967180847,0.3036,4366.9,4366.8,0.42017341]
[1756967182347,0.3036,4366.9,4366.8,0.70686217]
[1756967182749,0.5064,4366.9,4366.8,0.70686217]
[1756967183347,0.3036,4366.9,4366.8,0.70686217]
[1756967183750,0.3036,4367.3,4366.8,0.70686217]
[1756967183946,0.3036,4367.3,4367.2,6.85726078]
[1756967184143,0.3036,4367.3,4367.2,7.09526078]
[1756967184549,0.1144,4367.5,4367.2,7.09526078]
[1756967185556,0.3036,4367.3,4367.2,6.85726078]
[1756967185746,0.3036,4367.3,4367.2,7.09526078]
[1756967186063,0.5064,4367.3,4367.2,7.09526078]
[1756967186245,0.6978,4367.3,4367.2,7.14439493]
[1756967186451,0.6978,4367.3,4367.2,0.238]
[1756967187449,0.1144,4367.5,4366.7,32.993]
[1756967187450,0.3036,4366.8,4366.7,32.993]
[1756967187649,0.3036,4366.8,4366.7,33.51837955]
[1756967188157,0.3036,4366.8,4366.7,33.46697697]
[1756967188353,0.3036,4366.8,4366.7,33.70497697]
[1756967189461,0.3036,4366.8,4366.7,33.70397697]
[1756967190054,0.3036,4366.8,4366.7,33.46697697]
[1756967190253,0.3036,4366.8,4366.7,33.70397697]
[1756967191760,0.1144,4367.0,4366.7,33.70397697]
[1756967191962,0.1144,4367.0,4366.8,0.28737955]
[1756967192160,0.1144,4367.0,4366.7,33.41659742]
[1756967192161,0.1144,4367.0,4366.9,0.52437955]
[1756967192361,0.418,4367.0,4366.9,0.52437955]
[1756967192561,0.8122,4367.0,4366.9,0.28737955]
[1756967192763,0.8122,4367.0,4366.9,0.52437955]
[1756967193155,0.8122,4367.0,4366.9,0.28737955]
[1756967193452,0.8122,4367.0,4366.9,0.52437955]
[1756967193864,0.8122,4367.0,4366.9,0.52491366]
[1756967194166,0.8122,4367.0,4366.9,0.28791366]
[1756967194365,0.8122,4367.0,4366.9,0.52491366]
[1756967194561,4.8122,4367.0,4366.9,0.28791366]
[1756967194754,0.2028,4365.6,4364.8,32.98]
[1756967194958,0.3036,4365.4,4365.3,6.85726078]
[1756967195161,0.1144,4365.5,4365.3,6.85726078]
[1756967195162,0.1144,4365.5,4365.3,7.09426078]
[1756967195365,0.3036,4365.8,4365.3,7.27478796]
[1756967195659,0.1144,4366.0,4365.3,7.03778796]
[1756967195660,0.3036,4365.9,4365.3,7.03778796]
[1756967195865,0.6208,4365.5,4365.4,0.237]
[1756967196063,0.3036,4365.5,4365.4,0.237]
[1756967197668,0.418,4365.5,4365.4,0.237]
[1756967198160,0.6208,4365.5,4365.3,7.03778796]
[1756967198364,0.6978,4365.4,4365.3,7.03778796]
[1756967198562,0.6978,4365.4,4365.3,7.27478796]
[1756967199863,0.6978,4365.4,4365.3,6.85726078]
[1756967200368,0.6978,4365.4,4364.8,32.98]
[1756967200369,0.3036,4364.9,4364.8,32.98]
[1756967200668,0.3036,4364.9,4364.8,33.217]
[1756967203267,0.1144,4365.0,4364.8,33.217]
[1756967203462,0.1144,4365.5,4364.9,0.20499295]
[1756967203463,0.2867,4365.4,4364.9,0.20499295]
[1756967203663,0.3169,4365.5,4364.8,33.62926]
[1756967203664,0.2867,4365.3,4365.2,6.85726078]
[1756967203858,0.1144,4365.5,4365.2,7.09426078]
[1756967204069,0.4011,4365.5,4365.2,7.09426078]
[1756967204270,0.4011,4365.5,4365.2,7.50649078]
[1756967204872,0.2867,4365.4,4365.2,7.09426078]
[1756967205065,0.698,4365.3,4365.2,6.85726078]
[1756967205460,0.698,4365.3,4365.2,7.09426078]
[1756967206270,0.698,4365.3,4365.2,6.85726078]
[1756967206466,0.698,4365.3,4365.2,7.09426078]
[1756967207574,0.698,4365.3,4365.2,6.85726078]
[1756967207769,0.4892,4365.3,4365.2,7.09426078]
[1756967207968,0.2867,4365.3,4365.2,7.09426078]
[1756967208568,0.1144,4366.0,4365.2,11.09426078]
[1756967208764,0.1265,4367.0,4366.1,0.3632]
[1756967208966,0.1265,4367.0,4366.4,0.4767]
[1756967209167,0.3169,4366.5,4366.4,0.6002]
[1756967210471,0.1265,4367.0,4366.4,1.01231]
[1756967210668,0.5378,4367.0,4366.9,7.03886078]
[1756967210871,0.4132,4367.0,4366.9,7.45746078]
[1756967211372,0.6157,4367.0,4366.9,7.45746078]
[1756967212375,0.8245,4367.0,4366.9,6.85726078]
[1756967212671,0.8245,4367.0,4366.5,32.987]
[1756967212875,0.5378,4367.0,4366.6,0.237]
[1756967213067,0.329,4367.0,4366.9,7.22046078]
[1756967213269,0.329,4367.0,4366.9,7.45746078]
[1756967213574,0.8245,4367.0,4366.9,7.45746078]
[1756967213778,0.6157,4367.0,4366.9,7.45746078]
[1756967213971,0.4132,4367.0,4366.9,7.45746078]
[1756967214873,0.4132,4367.0,4366.9,7.57096078]
[1756967215075,0.4132,4367.5,4366.9,7.57096078]
[1756967216080,0.4132,4367.5,4366.9,7.98303078]
[1756967216274,0.4132,4367.5,4366.9,7.57096078]
[1756967216979,0.6157,4367.5,4367.4,0.3632]
[1756967217175,0.6157,4367.5,4367.4,0.6002]
[1756967217579,0.6157,4367.5,4367.4,6.51797742]
[1756967218674,0.2867,4367.5,4367.4,6.63147742]
[1756967218882,0.329,4368.0,4367.9,0.6826]
[1756967219083,0.329,4368.0,4367.9,6.83737742]
[1756967219681,0.1265,4368.5,4367.9,6.83737742]
[1756967219869,0.1265,4369.0,4368.1,0.2924]
[1756967220074,0.1265,4369.0,4368.2,0.237]
[1756967220275,0.4113,4368.3,4367.6,6.21017742]
[1756967220483,0.4113,4367.8,4367.7,0.4305]
[1756967220683,0.4113,4367.8,4367.7,0.9196]
[1756967220876,0.2867,4368.4,4367.7,0.9196]
[1756967221077,0.698,4368.4,4368.3,6.11127742]
[1756967221381,0.698,4368.4,4368.3,6.34827742]
[1756967221577,0.4892,4368.4,4368.3,6.83737742]
[1756967221781,0.2867,4368.8,4368.3,6.83737742]
[1756967222083,0.698,4368.8,4368.7,0.1935]
[1756967222386,0.698,4368.8,4368.7,0.237]
[1756967222681,0.698,4368.4,4368.3,5.91777742]
[1756967222870,0.4892,4368.4,4368.3,6.83737742]
[1756967223074,0.2867,4368.4,4368.3,6.83737742]
[1756967223272,0.4892,4368.4,4368.3,6.83737742]
[1756967223470,0.698,4368.4,4368.3,6.34827742]
[1756967223683,0.698,4368.4,4368.3,6.15477742]
[1756967224074,0.2867,4368.8,4368.3,6.15477742]
[1756967224276,0.4892,4368.4,4368.3,6.83737742]
[1756967224475,0.4892,4368.4,4368.3,0.1935]
[1756967224476,0.698,4368.4,4368.3,0.1935]
[1756967224781,0.698,4368.4,4368.3,0.237]
[1756967226487,0.2867,4368.3,4368.1,5.91777742]
[1756967226786,0.698,4367.7,4367.6,6.30797742]
[1756967227286,0.698,4367.7,4367.6,6.83637742]
[1756967227678,0.698,4367.7,4367.6,6.54397742]
[1756967227874,0.698,4367.7,4367.6,6.30797742]
[1756967228078,0.698,4367.7,4367.3,6.39703309]
[1756967228278,0.5378,4367.5,4367.4,0.4295]
[1756967228488,0.8245,4367.5,4367.4,0.4295]
[1756967228779,0.2867,4367.4,4367.3,5.91777742]
[1756967228979,0.698,4367.4,4367.3,6.34727742]
[1756967229179,0.698,4367.4,4367.3,5.91777742]
[1756967229382,0.698,4367.4,4367.3,6.15377742]
[1756967229776,0.698,4366.9,4366.8,5.91777742]
[1756967229981,0.698,4366.9,4366.8,6.54397742]
[1756967230187,0.698,4366.9,4366.8,6.83637742]
[1756967231282,0.4892,4366.9,4366.8,6.83637742]
[1756967233688,0.1265,4368.0,4366.8,6.54397742]
[1756967233893,0.3089,4367.9,4367.4,6.61877742]
[1756967234090,0.5174,4367.6,4367.5,0.937]
[1756967234581,0.1265,4368.0,4367.5,0.937]
[1756967234780,0.3994,4368.0,4367.9,6.61877742]
[1756967234985,0.2085,4368.0,4367.9,6.85477742]
[1756967235192,0.1265,4368.5,4367.9,6.85477742]
[1756967235391,0.5174,4368.5,4368.4,6.61877742]
[1756967235590,0.5174,4368.5,4368.4,6.85477742]
[1756967236193,0.8308,4368.5,4368.4,6.30277742]
[1756967236484,0.7083,4367.6,4367.5,6.11247742]
[1756967236691,0.3089,4367.9,4367.6,0.316]
[1756967236882,0.2085,4367.9,4367.8,0.701]
[1756967237087,0.5174,4367.9,4367.8,0.98843156]
[1756967238295,0.3089,4368.4,4367.8,0.98843156]
[1756967238587,0.7083,4368.1,4367.9,0.28743156]
[1756967238794,0.7083,4368.1,4368.0,0.52343156]
[1756967240588,0.7083,4368.1,4368.0,0.28743156]
[1756967240785,0.7083,4368.1,4367.2,6.11247742]
[1756967240786,0.7083,4367.3,4367.2,6.11247742]
[1756967240991,0.7083,4367.3,4367.2,6.63638297]
[1756967241297,0.5174,4367.3,4367.2,7.14268297]
[1756967241684,0.7083,4367.3,4367.2,6.82668297]
[1756967243300,0.7083,4367.3,4367.2,6.59068297]
[1756967243595,0.7083,4367.3,4367.2,6.82668297]
[1756967243800,0.1225,4368.0,4367.9,0.701]
[1756967243801,0.3089,4368.0,4367.9,0.701]
[1756967244097,0.3089,4368.4,4367.9,7.14272621]
[1756967244292,0.5174,4368.1,4368.0,0.98894879]
[1756967245491,0.7083,4368.1,4368.0,0.98894879]
[1756967245698,0.7083,4368.1,4368.0,0.67294879]
[1756967246399,0.7083,4368.1,4368.0,0.236]
[1756967246788,0.7083,4368.1,4367.1,6.61877742]
[1756967246789,0.2085,4367.2,4367.1,6.61877742]
[1756967246996,0.3089,4367.2,4367.1,7.14277349]
[1756967247197,0.3089,4367.4,4367.3,0.701]
[1756967247392,0.5219,4368.0,4367.9,0.1947]
[1756967247595,0.8308,4368.0,4367.9,0.621]
[1756967247794,1.38662847,4368.0,4367.9,0.4307]
[1756967248804,1.38662847,4368.0,4367.9,0.621]
[1756967249004,0.8308,4368.0,4367.9,0.621]
[1756967249300,1.38661817,4368.0,4367.9,0.385]
[1756967249496,0.7083,4367.9,4367.8,5.91777742]
[1756967249799,0.7083,4367.9,4367.8,6.34847742]
[1756967250001,0.7083,4367.9,4367.8,6.53877742]
[1756967250303,0.7083,4367.9,4367.8,6.85477742]
[1756967250602,0.7083,4367.9,4367.8,7.14628767]
[1756967250797,0.5174,4367.9,4367.8,7.14628767]
[1756967251404,0.7083,4367.9,4367.8,7.14628767]
[1756967251605,0.7083,4367.9,4367.8,1.22851025]
[1756967254105,0.3089,4368.4,4367.8,1.22851025]
[1756967254305,1.26447724,4368.3,4368.2,0.701]
[1756967254605,1.26447724,4368.3,4368.2,6.85477742]
[1756967254801,1.26447724,4368.3,4368.2,6.53877742]
[1756967255003,0.1225,4368.0,4367.7,5.91777742]
[1756967255208,0.7083,4367.8,4367.7,0.1947]
[1756967255406,0.7083,4367.8,4367.7,0.48637386]
[1756967255608,0.7083,4367.8,4367.7,0.72237386]
[1756967255804,0.7083,4367.8,4367.7,0.48637386]
[1756967256106,0.7083,4367.8,4367.7,0.72237386]
[1756967256509,0.7083,4367.8,4367.7,0.48637386]
[1756967256805,0.7083,4367.8,4367.7,0.72137386]
[1756967257601,0.7083,4367.8,4367.7,0.91167386]
[1756967257802,0.7083,4367.8,4367.7,0.67667386]
[1756967258002,0.7083,4367.8,4367.7,0.91167386]
[1756967258209,0.7083,4367.8,4367.7,0.67667386]
[1756967258514,0.7083,4367.8,4367.7,0.91167386]
[1756967259008,0.7083,4367.8,4367.7,7.14545128]
[1756967259507,0.7083,4367.8,4367.7,2.87150818]
[1756967259914,0.5174,4367.8,4367.7,4.5153425]
[1756967260210,0.7083,4368.4,4368.3,0.385]
[1756967260505,0.7083,4368.4,4368.3,2.57983432]
[1756967260506,1.26472785,4368.4,4368.3,2.57983432]
[1756967260708,0.86532785,4368.4,4368.3,2.57983432]
[1756967260905,0.1265,4369.0,4368.3,2.57983432]
[1756967261108,0.5694,4368.9,4368.8,1.83853432]
[1756967261305,1.1258756,4368.9,4368.8,2.07353432]
[1756967261611,1.4347756,4368.9,4368.8,2.07353432]
[1756967262209,0.2963,4369.6,4368.8,8.45295863]
[1756967262412,0.6886,4369.6,4369.5,0.3912]
[1756967262613,0.6886,4369.6,4369.5,0.6272]
[1756967263406,0.6886,4369.6,4369.5,0.9436]
[1756967263602,0.6886,4369.6,4369.5,0.6272]
[1756967263905,0.6886,4369.6,4368.7,5.91367892]
[1756967264108,0.4889,4368.9,4368.8,0.7076]
[1756967264309,0.4889,4368.9,4368.8,0.9436]
[1756967265005,0.2963,4369.4,4368.9,0.3164]
[1756967265212,0.8104,4369.5,4369.4,0.193]
[1756967265514,0.8104,4369.5,4369.4,0.429]
[1756967265811,0.8104,4369.5,4369.4,0.6272]
[1756967266210,0.8104,4369.5,4369.4,0.236]
[1756967266605,0.2963,4369.9,4369.4,0.6272]
[1756967266906,0.3923,4369.9,4369.8,0.193]
[1756967267103,0.3923,4369.9,4369.8,0.429]
[1756967267104,0.6886,4369.9,4369.8,0.429]
[1756967267711,0.6886,4369.9,4369.8,0.236]
[1756967267907,0.6886,4369.9,4369.8,0.429]
[1756967268707,0.6886,4369.9,4369.3,0.3164]
[1756967268906,0.5141,4369.5,4369.4,0.429]
[1756967269102,0.8104,4369.5,4369.4,0.193]
[1756967269305,0.6886,4369.5,4369.4,0.9436]
[1756967269506,0.4889,4369.5,4369.4,0.9436]
[1756967270008,0.8104,4369.5,4369.4,0.9436]
[1756967270208,0.4889,4369.5,4369.4,0.9436]
[1756967270409,0.1218,4370.0,4369.4,0.6272]
[1756967270607,0.8104,4370.0,4369.9,0.193]
[1756967270803,0.8104,4370.0,4369.9,0.236]
[1756967272916,0.8104,4370.0,4368.4,32.976]
[1756967273118,0.5141,4370.0,4368.7,5.91367892]
[1756967273414,0.5141,4370.0,4368.8,0.3164]
[1756967273415,0.2963,4369.9,4368.8,0.3164]
[1756967275418,0.2963,4369.9,4369.0,0.3164]
[1756967275820,0.6886,4369.1,4369.0,0.193]
[1756967276017,0.8104,4368.5,4368.4,32.976]
[1756967276213,0.8104,4368.5,4368.4,0.193]
[1756967276415,0.2963,4368.4,4367.8,0.3164]
[1756967276717,0.6886,4368.4,4368.3,0.193]
[1756967277015,0.6886,4368.4,4368.3,0.429]
[1756967277213,0.6886,4368.4,4368.3,0.193]
[1756967277517,0.6886,4368.4,4368.3,0.429]
[1756967278315,0.6886,4368.4,4368.3,0.236]
[1756967278918,0.6886,4368.4,4367.8,0.3164]
[1756967279119,0.2963,4368.3,4367.9,0.44192481]
[1756967279310,0.3923,4368.1,4368.0,0.39892481]
[1756967279511,0.3923,4368.1,4368.0,0.59712481]
[1756967279707,0.6886,4368.1,4368.0,0.91352481]
[1756967279914,0.4889,4368.1,4368.0,0.91352481]
[1756967280315,0.6886,4368.1,4368.0,0.39892481]
[1756967280513,0.6886,4368.1,4368.0,0.236]
[1756967280716,0.5141,4368.5,4368.4,0.193]
[1756967281023,0.5141,4368.5,4368.4,0.429]
[1756967281219,1.06350314,4368.5,4368.4,0.429]
[1756967281413,1.35980314,4368.5,4368.4,0.429]
[1756967283615,1.35980314,4368.5,4368.4,0.236]
[1756967283821,1.06350314,4368.5,4367.8,6.84312002]
[1756967284119,0.6886,4368.0,4367.9,1.14860946]
[1756967284623,0.8104,4368.0,4367.9,0.83220946]
[1756967285415,0.8104,4368.0,4367.9,2.83995408]
[1756967286117,0.8104,4368.0,4367.9,0.39900946]
[1756967286317,0.8104,4368.0,4367.9,0.235]
[1756967286710,0.8104,4368.0,4367.9,0.428]
[1756967287210,0.8104,4368.0,4367.9,0.6262]
[1756967287716,0.8104,4368.0,4367.9,0.83226537]
[1756967287921,0.8104,4368.0,4367.9,0.6262]
[1756967288719,0.8104,4368.0,4367.9,0.83227282]
[1756967289124,0.8104,4368.0,4367.9,0.6262]
[1756967290626,0.8104,4368.0,4367.9,0.9426]